bitfinex/quotes_BTCUSD_20230831
["timestamp","ask_amount","ask_price","bid_price","bid_amount"]
[1693518588920,0.026,26002.0,26001.0,2.95407678]
[1693518589125,0.026,26002.0,26001.0,2.96583678]
[1693518589348,0.026,26002.0,26001.0,2.97015678]
[1693518589566,0.006,26002.0,26001.0,2.97851678]
[1693518589702,0.112525,26013.0,26001.0,3.08484781]
[1693518589703,0.02652406,26007.0,26001.0,3.08484781]
[1693518589914,0.02652406,26006.0,26004.0,0.02]
[1693518590111,0.02652406,26006.0,26005.0,3.42914678]
[1693518590313,0.02652406,26006.0,26005.0,3.83234678]
[1693518590631,0.02652406,26006.0,26005.0,3.85473078]
[1693518590853,0.02652406,26006.0,26005.0,3.85449078]
[1693518591028,0.02652406,26006.0,26005.0,3.85521078]
[1693518591240,0.3866,26012.0,26005.0,4.05583078]
[1693518591446,0.02652406,26006.0,26005.0,4.08235078]
[1693518591638,0.02652406,26006.0,26005.0,3.93691078]
[1693518591839,0.02652406,26006.0,26005.0,4.08067078]
[1693518592041,0.02652406,26006.0,26005.0,4.32902078]
[1693518592262,0.02652406,26006.0,26005.0,4.33550078]
[1693518592503,0.02652406,26006.0,26005.0,4.26046078]
[1693518592819,0.02652406,26006.0,26005.0,4.25410078]
[1693518593025,0.02652406,26006.0,26005.0,4.25422078]
[1693518593227,0.02652406,26006.0,26005.0,4.29110078]
[1693518593380,0.02652406,26006.0,26005.0,4.31498078]
[1693518593585,0.02652406,26006.0,26005.0,4.25074078]
[1693518593811,0.02652406,26006.0,26005.0,4.28858078]
[1693518593986,0.02652406,26006.0,26005.0,4.30730078]
[1693518594199,0.02652406,26006.0,26005.0,4.34562078]
[1693518594400,0.02652406,26006.0,26005.0,4.34430078]
[1693518594682,0.02652406,26006.0,26005.0,4.34406078]
[1693518594889,0.02652406,26006.0,26005.0,4.34202078]
[1693518595041,0.02652406,26006.0,26005.0,4.33914078]
[1693518595242,0.02652406,26006.0,26005.0,4.33650078]
[1693518595441,0.02652406,26006.0,26005.0,4.33674078]
[1693518595645,0.02652406,26006.0,26005.0,4.34034078]
[1693518595850,0.02,26012.0,26007.0,0.02]
[1693518596048,0.02652406,26012.0,26010.0,0.31063]
[1693518596350,0.02652406,26012.0,26011.0,1.84044478]
[1693518596550,0.02652406,26012.0,26011.0,1.95006478]
[1693518596758,0.02652406,26012.0,26011.0,3.10330278]
[1693518596959,0.02952406,26012.0,26011.0,3.10342278]
[1693518597121,0.02952406,26012.0,26011.0,3.10276278]
[1693518597516,0.02952406,26012.0,26011.0,3.22302278]
[1693518597717,0.02952406,26012.0,26011.0,3.24272278]
[1693518597922,0.02952406,26012.0,26011.0,3.21442278]
[1693518598132,0.02952406,26012.0,26011.0,3.20962278]
[1693518598334,0.02,26013.0,26011.0,3.22214278]
[1693518598545,0.02,26013.0,26012.0,0.02]
[1693518598755,0.02652406,26013.0,26012.0,2.25545478]
[1693518598958,0.02652406,26013.0,26012.0,2.36933478]
[1693518599163,0.02652406,26013.0,26012.0,2.36777478]
[1693518599427,0.02652406,26016.0,26012.0,2.84405478]
[1693518599639,0.02652406,26016.0,26014.0,0.38708678]
[1693518599848,0.02652406,26016.0,26015.0,2.74476]
[1693518600076,0.08652406,26016.0,26015.0,2.11685678]
[1693518601016,0.08652406,26016.0,26015.0,2.18489678]
[1693518601215,0.08652406,26016.0,26015.0,2.19365678]
[1693518601481,0.08652406,26016.0,26015.0,2.19353678]
[1693518601679,0.08652406,26016.0,26015.0,2.23439678]
[1693518601886,0.08652406,26016.0,26015.0,2.23649678]
[1693518602096,0.08652406,26016.0,26015.0,2.23643678]
[1693518602301,0.08652406,26016.0,26015.0,2.23079678]
[1693518602472,0.08652406,26016.0,26015.0,2.25087678]
[1693518602678,0.08652406,26016.0,26015.0,2.24955678]
[1693518602889,0.08652406,26016.0,26015.0,2.24961678]
[1693518603078,0.08652406,26016.0,26015.0,2.24949678]
[1693518603277,0.08652406,26016.0,26015.0,2.36891678]
[1693518603486,0.08652406,26016.0,26015.0,2.45460078]
[1693518603663,0.08652406,26016.0,26015.0,2.45376078]
[1693518603863,0.08652406,26016.0,26015.0,2.45706078]
[1693518604098,0.08652406,26016.0,26015.0,2.46210078]
[1693518604302,0.08652406,26016.0,26015.0,2.46354078]
[1693518604478,0.08652406,26016.0,26015.0,2.45430078]
[1693518604682,0.08652406,26016.0,26015.0,2.45562078]
[1693518605059,0.08652406,26016.0,26015.0,2.45418078]
[1693518605264,0.08652406,26016.0,26015.0,2.45328078]
[1693518605441,0.08652406,26016.0,26015.0,2.45262078]
[1693518605442,0.02652406,26016.0,26015.0,2.45262078]
[1693518605696,0.02652406,26016.0,26015.0,2.45568078]
[1693518605897,0.02652406,26016.0,26015.0,2.45646078]
[1693518606105,0.1851,26020.0,26015.0,2.77610078]
[1693518606106,0.02652406,26018.0,26015.0,2.77610078]
[1693518606313,0.02652406,26017.0,26016.0,0.70708678]
[1693518606529,0.02652406,26017.0,26016.0,2.24118278]
[1693518606706,0.02,26020.0,26016.0,2.31314278]
[1693518606921,0.02,26017.0,26016.0,1.800936]
[1693518607113,0.02,26017.0,26016.0,2.188104]
[1693518607472,0.02,26017.0,26016.0,2.485464]
[1693518607642,0.02,26017.0,26016.0,2.494584]
[1693518607878,0.02,26017.0,26016.0,2.492064]
[1693518608081,0.1769,26023.0,26016.0,2.630224]
[1693518608082,0.02,26020.0,26016.0,2.630224]
[1693518608291,0.02,26021.0,26019.0,0.1184]
[1693518608505,0.02,26022.0,26020.0,3.320795]
[1693518608708,0.02,26022.0,26021.0,0.1384]
[1693518608929,0.02,26022.0,26021.0,2.84753778]
[1693518609104,0.02,26024.0,26021.0,2.84021778]
[1693518609349,0.02,26022.0,26021.0,2.331611]
[1693518609548,0.2139,26028.0,26022.0,0.12432]
[1693518609549,0.02,26024.0,26022.0,0.12432]
[1693518609754,0.02,26024.0,26023.0,2.625652]
[1693518609957,0.02,26024.0,26023.0,2.84867792]
[1693518610159,0.02,26024.0,26023.0,3.3490447]
[1693518610364,0.02,26024.0,26023.0,3.3522247]
[1693518610646,0.02,26024.0,26023.0,3.3523447]
[1693518610792,0.02,26024.0,26023.0,3.24765878]
[1693518611006,0.02,26024.0,26023.0,3.28295878]
[1693518611202,0.02,26024.0,26023.0,3.28505878]
[1693518611405,0.02,26024.0,26023.0,3.24339878]
[1693518611607,0.02,26024.0,26023.0,3.27919878]
[1693518611822,0.02,26024.0,26023.0,3.28033878]
[1693518612023,0.02,26024.0,26023.0,3.28213878]
[1693518612227,0.02,26025.0,26023.0,3.4375647]
[1693518612431,0.02,26025.0,26024.0,0.50548678]
[1693518612595,0.02,26025.0,26024.0,2.7687257]
[1693518613004,0.02,26025.0,26024.0,2.66409978]
[1693518613208,0.74735877,26025.0,26024.0,0.12384]
[1693518613422,0.16652406,26022.0,26021.0,0.0009956]
[1693518613619,0.18135877,26022.0,26021.0,0.0009956]
[1693518613826,0.16652406,26022.0,26021.0,0.38708678]
[1693518614039,0.02652406,26019.0,26018.0,1.306887]
[1693518614294,0.02652406,26019.0,26018.0,1.69397378]
[1693518614295,0.18135877,26019.0,26018.0,1.69397378]
[1693518614489,0.02652406,26019.0,26018.0,1.54011678]
[1693518614684,0.02652406,26019.0,26018.0,1.65851678]
[1693518614893,0.02652406,26019.0,26018.0,1.75487678]
[1693518615092,0.02652406,26019.0,26018.0,1.78855678]
[1693518615308,0.02652406,26019.0,26018.0,2.36579978]
[1693518615525,0.02652406,26019.0,26018.0,2.33025978]
[1693518615897,0.02652406,26019.0,26018.0,2.33427978]
[1693518616124,0.02652406,26019.0,26018.0,2.63337978]
[1693518616328,0.02652406,26019.0,26018.0,2.70531978]
[1693518616531,0.02652406,26019.0,26018.0,2.70213978]
[1693518616679,0.02652406,26019.0,26018.0,2.66519978]
[1693518616879,0.02652406,26019.0,26018.0,2.70237978]
[1693518617126,0.02652406,26019.0,26018.0,2.66525978]
[1693518617260,0.02652406,26019.0,26018.0,2.66537978]
[1693518617483,0.02652406,26019.0,26018.0,2.66389978]
[1693518617699,0.02652406,26019.0,26018.0,2.68249978]
[1693518617927,0.02652406,26020.0,26018.0,2.60215978]
[1693518618208,0.02652406,26020.0,26019.0,0.68708678]
[1693518618413,0.02652406,26020.0,26019.0,2.51288978]
[1693518618612,0.02,26020.0,26019.0,2.51426978]
[1693518618859,0.02652406,26020.0,26019.0,2.52038978]
[1693518619061,0.02,26021.0,26019.0,2.53712978]
[1693518619237,0.02,26021.0,26019.0,2.53472978]
[1693518619457,0.02,26021.0,26020.0,0.10212]
[1693518619815,0.02,26021.0,26020.0,2.51696378]
[1693518619989,0.02652406,26021.0,26020.0,2.51888378]
[1693518620192,0.02652406,26021.0,26020.0,2.51510378]
[1693518620429,0.02652406,26021.0,26020.0,2.51396378]
[1693518620634,0.02652406,26021.0,26020.0,2.50730378]
[1693518620765,0.02652406,26021.0,26020.0,2.54064378]
[1693518620970,0.1796,26022.0,26020.0,2.73936378]
[1693518621187,0.18612406,26022.0,26021.0,0.70708678]
[1693518621381,0.18612406,26022.0,26021.0,2.53167778]
[1693518621583,0.02652406,26022.0,26021.0,2.53131778]
[1693518621795,0.02,26022.0,26021.0,2.53695778]
[1693518621956,0.02,26022.0,26021.0,2.53875778]
[1693518622170,0.02,26022.0,26021.0,2.53797778]
[1693518622373,0.02,26022.0,26021.0,2.53869778]
[1693518622607,0.02,26022.0,26021.0,2.53341778]
[1693518622809,0.02652406,26022.0,26021.0,2.53503778]
[1693518623027,0.02652406,26022.0,26021.0,2.53419778]
[1693518623230,0.02652406,26022.0,26021.0,2.53065778]
[1693518623437,0.02652406,26022.0,26021.0,2.53179778]
[1693518623678,0.1518,26024.0,26021.0,2.56807778]
[1693518623900,0.1518,26024.0,26021.0,2.63411778]
[1693518624100,0.1518,26024.0,26021.0,2.63603778]
[1693518624300,0.02652406,26023.0,26022.0,0.10434]
[1693518624554,0.02652406,26023.0,26022.0,2.52331178]
[1693518624713,0.02652406,26023.0,26022.0,2.52271178]
[1693518624913,0.02652406,26023.0,26022.0,2.51617178]
[1693518625119,0.02652406,26023.0,26022.0,2.51407178]
[1693518625317,0.02652406,26023.0,26022.0,2.51503178]
[1693518625499,0.02652406,26023.0,26022.0,2.51317178]
[1693518625734,0.02652406,26023.0,26022.0,2.51281178]
[1693518625933,0.02652406,26023.0,26022.0,2.51287178]
[1693518626135,0.02652406,26023.0,26022.0,2.51203178]
[1693518626313,0.02652406,26023.0,26022.0,2.51785178]
[1693518626516,0.02,26023.0,26022.0,2.52355178]
[1693518626733,0.02,26023.0,26022.0,2.52721178]
[1693518626942,0.02,26023.0,26022.0,2.52679178]
[1693518627142,0.02,26023.0,26022.0,2.59887178]
[1693518627343,0.02,26023.0,26022.0,2.59833178]
[1693518627542,0.02,26023.0,26022.0,2.59725178]
[1693518627949,0.02,26023.0,26022.0,2.59713178]
[1693518628172,0.02,26023.0,26022.0,2.60103178]
[1693518628325,0.02,26023.0,26022.0,2.60091178]
[1693518628537,0.02,26023.0,26022.0,2.60157178]
[1693518628735,0.02,26023.0,26022.0,2.60025178]
[1693518628934,0.02,26023.0,26022.0,2.60037178]
[1693518629377,0.02,26023.0,26022.0,2.60115178]
[1693518629587,0.02,26023.0,26022.0,2.60157178]
[1693518629761,0.02,26023.0,26022.0,2.60109178]
[1693518629957,0.02,26023.0,26022.0,2.59827178]
[1693518630161,0.02,26023.0,26022.0,2.59971178]
[1693518630387,0.02,26024.0,26022.0,2.78363178]
[1693518630582,0.02,26024.0,26023.0,0.70708678]
[1693518630801,0.02,26024.0,26023.0,2.54498578]
[1693518631020,0.02,26025.0,26023.0,2.48754578]
[1693518631216,0.02652406,26024.0,26023.0,2.41632578]
[1693518631756,0.02652406,26024.0,26023.0,2.45332578]
[1693518633375,0.02652406,26024.0,26023.0,2.49032578]
[1693518635429,0.02652406,26024.0,26023.0,2.56562578]
[1693518635631,0.02652406,26024.0,26023.0,2.49032578]
[1693518638339,0.08652406,26024.0,26023.0,0.650413]
[1693518638540,0.08652406,26024.0,26023.0,0.074]
[1693518638741,0.17820888,26024.0,26023.0,0.074]
[1693518639644,0.22453979,26024.0,26023.0,0.613413]
[1693518639849,0.22453979,26024.0,26023.0,1.189826]
[1693518640026,0.22453979,26024.0,26023.0,1.57891278]
[1693518640228,0.20453979,26024.0,26023.0,1.57891278]
[1693518640430,0.20453979,26024.0,26023.0,2.23564578]
[1693518640632,0.16453979,26024.0,26023.0,2.27030578]
[1693518640812,0.11858048,26024.0,26023.0,2.27618578]
[1693518641010,0.11858048,26024.0,26023.0,2.27798578]
[1693518641284,0.11858048,26024.0,26023.0,2.27390578]
[1693518641416,0.11858048,26024.0,26023.0,2.27444578]
[1693518641617,0.11858048,26024.0,26023.0,2.27270578]
[1693518641817,0.11858048,26024.0,26023.0,2.26118578]
[1693518642088,0.15858048,26024.0,26023.0,2.26430578]
[1693518642313,0.15858048,26024.0,26023.0,2.26250578]
[1693518642690,0.15858048,26024.0,26023.0,2.26328578]
[1693518642925,0.15858048,26024.0,26023.0,2.26334578]
[1693518643237,0.15858048,26024.0,26023.0,2.26316578]
[1693518643459,0.15858048,26024.0,26023.0,2.26100578]
[1693518643660,0.15858048,26024.0,26023.0,2.26172578]
[1693518643869,0.15858048,26024.0,26023.0,2.19032578]
[1693518644077,0.20453979,26024.0,26023.0,2.25932578]
[1693518644282,0.20453979,26024.0,26023.0,2.25626578]
[1693518644505,0.20453979,26024.0,26023.0,2.19032578]
[1693518644727,0.19953979,26024.0,26023.0,2.19032578]
[1693518645512,0.19953979,26024.0,26023.0,1.61391278]
[1693518645712,0.29748566,26024.0,26023.0,1.61391278]
[1693518646245,0.52758931,26024.0,26023.0,1.61391278]
[1693518646646,0.34350639,26024.0,26023.0,1.61391278]
[1693518646860,0.34350639,26024.0,26023.0,1.03749978]
[1693518647080,0.34350639,26024.0,26023.0,0.074]
[1693518647280,0.19611443,26024.0,26023.0,0.074]
[1693518649315,0.47223882,26024.0,26023.0,0.074]
[1693518650002,0.19611443,26024.0,26023.0,0.074]
[1693518650351,0.19611443,26024.0,26023.0,0.650413]
[1693518651396,0.47223882,26024.0,26023.0,0.650413]
[1693518653414,0.47223882,26024.0,26023.0,1.03749978]
[1693518653624,0.47223882,26024.0,26023.0,2.19032578]
[1693518653828,0.47223882,26024.0,26023.0,1.03749978]
[1693518654887,0.47223882,26024.0,26023.0,0.46108678]
[1693518656396,0.47223882,26024.0,26023.0,0.074]
[1693518656617,0.47223882,26024.0,26023.0,0.650413]
[1693518656860,0.32914121,26024.0,26023.0,0.650413]
[1693518658623,0.19611443,26024.0,26023.0,0.650413]
[1693518659589,0.32914121,26024.0,26023.0,0.650413]
[1693518659740,0.19611443,26024.0,26023.0,0.650413]
[1693518659991,0.32914121,26024.0,26023.0,0.650413]
[1693518662843,0.32914121,26024.0,26023.0,1.61391278]
[1693518664043,0.26914121,26024.0,26023.0,1.61391278]
[1693518664245,0.26914121,26024.0,26023.0,2.26712578]
[1693518664246,0.41285868,26024.0,26023.0,2.26712578]
[1693518664664,0.35014699,26024.0,26023.0,2.26646578]
[1693518664869,0.41283323,26024.0,26023.0,2.26736578]
[1693518665089,0.41283323,26024.0,26023.0,2.26712578]
[1693518665265,0.30911576,26024.0,26023.0,2.19032578]
[1693518665623,0.40101227,26024.0,26023.0,2.19032578]
[1693518665824,0.30911576,26024.0,26023.0,2.19032578]
[1693518666025,0.17608898,26024.0,26023.0,2.19032578]
[1693518666346,0.45289047,26024.0,26023.0,2.19032578]
[1693518667514,0.30911576,26024.0,26023.0,2.19032578]
[1693518667705,0.45289459,26024.0,26023.0,2.19032578]
[1693518669289,0.30911576,26024.0,26023.0,2.19032578]
[1693518669487,0.17608898,26024.0,26023.0,2.19032578]
[1693518670198,0.30911576,26024.0,26023.0,1.61391278]
[1693518671497,1.45766282,26024.0,26023.0,0.074]
[1693518671695,0.64752406,26020.0,26019.0,0.19216]
[1693518671838,0.64752406,26019.0,26018.0,0.00098534]
[1693518672197,0.64752406,26019.0,26013.0,0.576617]
[1693518672198,0.08152406,26014.0,26013.0,0.576617]
[1693518672404,0.51880195,26014.0,26013.0,1.54131932]
[1693518672599,0.51880195,26014.0,26013.0,1.54033778]
[1693518672811,0.36396724,26014.0,26013.0,1.62805778]
[1693518673137,0.30396724,26014.0,26013.0,1.63117778]
[1693518673267,0.43653778,26014.0,26013.0,2.22617178]
[1693518673471,0.26597328,26014.0,26013.0,2.22555178]
[1693518673653,0.20597328,26014.0,26013.0,2.22591178]
[1693518673856,0.20597328,26014.0,26013.0,2.22683178]
[1693518674058,0.26597328,26014.0,26013.0,2.22873178]
[1693518674349,0.20597328,26014.0,26013.0,2.23269178]
[1693518674560,0.16980141,26014.0,26013.0,2.22801178]
[1693518674738,0.22980141,26014.0,26013.0,2.22867178]
[1693518674983,0.21980141,26014.0,26013.0,2.22839178]
[1693518675189,0.16980141,26014.0,26013.0,2.39637178]
[1693518675400,0.03152406,26014.0,26013.0,2.72909178]
[1693518675534,0.03152406,26014.0,26013.0,2.72429178]
[1693518675738,0.02152406,26014.0,26013.0,2.70893178]
[1693518675945,0.03152406,26014.0,26013.0,2.70845178]
[1693518676148,0.03152406,26014.0,26013.0,2.71157178]
[1693518676426,0.03252406,26014.0,26013.0,2.74357178]
[1693518676632,0.03152406,26014.0,26013.0,2.75885178]
[1693518676809,0.03152406,26014.0,26013.0,2.75993178]
[1693518676986,0.03252406,26014.0,26013.0,2.77393178]
[1693518677187,0.03252406,26014.0,26013.0,2.77429178]
[1693518677516,0.03252406,26014.0,26013.0,2.77981178]
[1693518677688,0.03252406,26014.0,26013.0,2.77881178]
[1693518677689,0.02252406,26014.0,26013.0,2.77881178]
[1693518677855,0.02252406,26014.0,26013.0,2.77853178]
[1693518678056,0.02252406,26014.0,26013.0,2.77901178]
[1693518678370,0.01752406,26014.0,26013.0,2.78417178]
[1693518678581,0.01752406,26014.0,26013.0,2.78225178]
[1693518678784,0.01752406,26014.0,26013.0,2.78153178]
[1693518678981,0.01752406,26014.0,26013.0,2.76713178]
[1693518679326,0.01752406,26014.0,26013.0,2.77241178]
[1693518679533,0.01752406,26014.0,26013.0,2.76785178]
[1693518679738,0.01752406,26014.0,26013.0,2.76665178]
[1693518680069,0.01752406,26014.0,26013.0,2.76833178]
[1693518680270,0.01752406,26014.0,26013.0,2.77013178]
[1693518680392,0.01752406,26014.0,26013.0,2.76725178]
[1693518680593,0.01752406,26014.0,26013.0,2.77253178]
[1693518680797,0.01752406,26014.0,26013.0,2.77313178]
[1693518681118,0.01752406,26014.0,26013.0,2.77253178]
[1693518681295,0.01752406,26014.0,26013.0,2.77601178]
[1693518681494,0.01752406,26014.0,26013.0,2.77409178]
[1693518681764,0.01752406,26014.0,26013.0,2.77481178]
[1693518681964,0.01752406,26014.0,26013.0,2.77589178]
[1693518682175,0.01752406,26014.0,26013.0,2.77565178]
[1693518682378,0.01752406,26015.0,26013.0,2.78225178]
[1693518682586,0.01752406,26014.0,26013.0,2.393365]
[1693518682739,0.01752406,26014.0,26013.0,2.065885]
[1693518682946,0.01752406,26014.0,26013.0,2.395285]
[1693518683265,0.01752406,26014.0,26013.0,2.380925]
[1693518683471,0.01752406,26014.0,26013.0,2.381885]
[1693518683677,0.01752406,26014.0,26013.0,2.384365]
[1693518683857,0.01752406,26014.0,26013.0,2.382525]
[1693518684053,0.01752406,26014.0,26013.0,2.384005]
[1693518684254,0.01752406,26014.0,26013.0,2.382805]
[1693518684481,0.01752406,26014.0,26013.0,2.378325]
[1693518684706,0.01752406,26014.0,26013.0,2.40694565]
[1693518684855,0.01752406,26014.0,26013.0,2.40966565]
[1693518685078,0.01752406,26014.0,26013.0,2.79519243]
[1693518685283,0.01852406,26014.0,26013.0,2.81219243]
[1693518685483,0.01852406,26014.0,26013.0,2.81171243]
[1693518685676,0.01852406,26014.0,26013.0,2.81243243]
[1693518686045,0.001,26014.0,26013.0,2.81351243]
[1693518686248,0.001,26014.0,26013.0,3.20800837]
[1693518686461,0.001,26014.0,26013.0,3.18118837]
[1693518686662,0.001,26014.0,26013.0,3.19810837]
[1693518686942,0.001,26014.0,26013.0,3.18100837]
[1693518687248,0.001,26014.0,26013.0,3.17740837]
[1693518687425,0.001,26014.0,26013.0,3.17236837]
[1693518687631,0.001,26014.0,26013.0,3.16984837]
[1693518687838,0.001,26014.0,26013.0,2.97370837]
[1693518688048,0.001,26014.0,26013.0,2.97358837]
[1693518688389,0.001,26014.0,26013.0,3.18082837]
[1693518688571,0.001,26014.0,26013.0,2.91370837]
[1693518688779,0.001,26014.0,26013.0,2.91862837]
[1693518688970,0.001,26014.0,26013.0,2.91658837]
[1693518689172,0.001,26014.0,26013.0,2.91622837]
[1693518689382,0.001,26014.0,26013.0,2.91658837]
[1693518689582,0.001,26014.0,26013.0,2.91850837]
[1693518689784,0.001,26014.0,26013.0,2.91694837]
[1693518689984,0.001,26014.0,26013.0,2.91706837]
[1693518690189,0.001,26014.0,26013.0,2.81495243]
[1693518690389,0.01852406,26014.0,26013.0,2.80031243]
[1693518690541,0.01852406,26014.0,26013.0,2.77685178]
[1693518690744,0.01852406,26014.0,26013.0,2.77889178]
[1693518690989,0.01852406,26014.0,26013.0,2.77925178]
[1693518691220,0.01852406,26014.0,26013.0,2.77865178]
[1693518691394,0.01852406,26014.0,26013.0,2.77925178]
[1693518691620,0.01852406,26014.0,26013.0,2.77937178]
[1693518691733,0.01852406,26014.0,26013.0,2.77949178]
[1693518691934,0.01852406,26014.0,26013.0,2.77865178]
[1693518692135,0.01852406,26014.0,26013.0,2.77913178]
[1693518692333,0.01852406,26014.0,26013.0,2.77841178]
[1693518692538,0.01852406,26014.0,26013.0,2.77865178]
[1693518692785,0.01852406,26014.0,26013.0,2.77889178]
[1693518692958,0.01852406,26014.0,26013.0,2.77925178]
[1693518693159,0.01852406,26014.0,26013.0,2.77997178]
[1693518693370,0.01852406,26014.0,26013.0,2.78021178]
[1693518693631,0.01852406,26014.0,26013.0,2.78009178]
[1693518693858,0.01852406,26014.0,26013.0,2.78045178]
[1693518694061,0.01852406,26014.0,26013.0,2.78057178]
[1693518694235,0.01852406,26014.0,26013.0,2.78345178]
[1693518694393,0.01852406,26014.0,26013.0,2.79017178]
[1693518694598,0.01852406,26014.0,26013.0,2.78909178]
[1693518694997,0.01852406,26014.0,26013.0,2.78801178]
[1693518695209,0.01852406,26014.0,26013.0,2.78837178]
[1693518695416,0.01852406,26014.0,26013.0,2.78861178]
[1693518695616,0.01852406,26014.0,26013.0,2.78909178]
[1693518695817,0.01852406,26014.0,26013.0,2.78825178]
[1693518696041,0.01852406,26014.0,26013.0,2.78933178]
[1693518696246,0.01852406,26014.0,26013.0,2.78957178]
[1693518696447,0.01852406,26014.0,26013.0,2.79377178]
[1693518696684,0.01852406,26014.0,26013.0,2.79521178]
[1693518696997,0.01852406,26014.0,26013.0,2.80037178]
[1693518697311,0.01852406,26014.0,26013.0,2.80145178]
[1693518697489,0.01852406,26014.0,26013.0,2.80073178]
[1693518697786,0.01852406,26014.0,26013.0,2.80133178]
[1693518698015,0.01852406,26014.0,26013.0,2.99388178]
[1693518698170,0.01852406,26014.0,26013.0,2.98044178]
[1693518698344,0.01852406,26014.0,26013.0,3.22800178]
[1693518698551,0.01852406,26014.0,26013.0,3.01788178]
[1693518698750,0.01852406,26014.0,26013.0,3.02160178]
[1693518698961,0.01852406,26014.0,26013.0,3.02232178]
[1693518699376,0.01852406,26014.0,26013.0,3.02112178]
[1693518699546,0.01852406,26014.0,26013.0,3.23322178]
[1693518699748,0.01852406,26014.0,26013.0,3.22926178]
[1693518699949,0.01852406,26014.0,26013.0,3.03264178]
[1693518700189,0.01852406,26014.0,26013.0,3.23088178]
[1693518700390,0.01852406,26014.0,26013.0,3.23214178]
[1693518700575,0.01852406,26014.0,26013.0,3.23286178]
[1693518700773,0.01852406,26014.0,26013.0,3.23268178]
[1693518701108,0.01852406,26014.0,26013.0,3.22836178]
[1693518701345,0.01852406,26014.0,26013.0,3.22782178]
[1693518701554,0.01852406,26014.0,26013.0,3.22998178]
[1693518701758,0.01852406,26014.0,26013.0,3.23214178]
[1693518702188,0.01852406,26014.0,26013.0,3.23466178]
[1693518702392,0.01852406,26014.0,26013.0,3.24852178]
[1693518702599,0.01852406,26014.0,26013.0,3.23286178]
[1693518702800,0.01852406,26014.0,26013.0,3.23538178]
[1693518702959,0.01852406,26014.0,26013.0,3.23520178]
[1693518703163,0.01852406,26014.0,26013.0,3.23538178]
[1693518703356,0.01852406,26014.0,26013.0,3.23484178]
[1693518703517,0.01852406,26014.0,26013.0,3.23520178]
[1693518703718,0.01852406,26014.0,26013.0,3.24420178]
[1693518703916,0.01852406,26014.0,26013.0,3.24618178]
[1693518704117,0.01852406,26014.0,26013.0,3.24780178]
[1693518704317,0.01852406,26014.0,26013.0,3.24708178]
[1693518704574,0.01852406,26014.0,26013.0,3.24276178]
[1693518704821,0.001,26014.0,26013.0,3.26508178]
[1693518705044,0.001,26014.0,26013.0,3.26544178]
[1693518705248,0.001,26014.0,26013.0,3.26220178]
[1693518705453,0.001,26014.0,26013.0,3.26490178]
[1693518705658,0.001,26014.0,26013.0,3.26472178]
[1693518705856,0.01852406,26014.0,26013.0,3.26436178]
[1693518706053,0.001,26014.0,26013.0,3.26490178]
[1693518706255,0.001,26014.0,26013.0,3.28416178]
[1693518706524,0.01852406,26014.0,26013.0,2.93400178]
[1693518706695,0.01852406,26014.0,26013.0,2.94276178]
[1693518706904,0.01852406,26014.0,26013.0,2.95872178]
[1693518707104,0.01852406,26014.0,26013.0,2.95860178]
[1693518707286,0.01852406,26014.0,26013.0,2.95920178]
[1693518707484,0.01852406,26014.0,26013.0,2.95908178]
[1693518707715,0.01852406,26014.0,26013.0,2.96172178]
[1693518707990,0.01852406,26014.0,26013.0,2.95980178]
[1693518708192,0.01852406,26014.0,26013.0,2.96004178]
[1693518708393,0.01852406,26014.0,26013.0,2.96088178]
[1693518708712,0.01852406,26014.0,26013.0,2.96124178]
[1693518708916,0.01852406,26014.0,26013.0,2.96100178]
[1693518709157,0.01852406,26014.0,26013.0,2.96148178]
[1693518709481,0.01852406,26014.0,26013.0,2.96088178]
[1693518709669,0.01852406,26014.0,26013.0,2.96136178]
[1693518709826,0.01852406,26014.0,26013.0,2.96172178]
[1693518710023,0.01852406,26014.0,26013.0,2.96112178]
[1693518710245,0.01852406,26014.0,26013.0,2.96196178]
[1693518710446,0.01852406,26014.0,26013.0,2.96172178]
[1693518710623,0.01852406,26014.0,26013.0,2.96232178]
[1693518710831,0.01852406,26014.0,26013.0,2.96292178]
[1693518711037,0.01852406,26014.0,26013.0,2.96328178]
[1693518711233,0.01852406,26014.0,26013.0,2.96352178]
[1693518711434,0.01852406,26014.0,26013.0,2.97828178]
[1693518711660,0.01852406,26014.0,26013.0,2.97372178]
[1693518711989,0.01852406,26014.0,26013.0,2.97576178]
[1693518712185,0.01852406,26014.0,26013.0,2.97600178]
[1693518712318,0.01852406,26014.0,26013.0,2.97876178]
[1693518712529,0.01852406,26014.0,26013.0,2.97648178]
[1693518712756,0.01852406,26014.0,26013.0,2.97420178]
[1693518712976,0.01852406,26014.0,26013.0,2.97132178]
[1693518713296,0.01852406,26014.0,26013.0,2.97156178]
[1693518713513,0.01852406,26014.0,26013.0,2.97192178]
[1693518713710,0.01852406,26014.0,26013.0,2.97276178]
[1693518713918,0.01852406,26014.0,26013.0,2.97420178]
[1693518714120,0.01852406,26014.0,26013.0,2.97384178]
[1693518714335,0.01852406,26014.0,26013.0,2.97456178]
[1693518714517,0.01852406,26014.0,26013.0,2.97660178]
[1693518714651,0.01852406,26014.0,26013.0,2.97612178]
[1693518714863,0.01852406,26014.0,26013.0,2.97696178]
[1693518715271,0.01852406,26014.0,26013.0,2.98140178]
[1693518715474,0.01852406,26014.0,26013.0,2.98116178]
[1693518715654,0.01852406,26014.0,26013.0,2.96004178]
[1693518715854,0.01852406,26014.0,26013.0,2.97552178]
[1693518716065,0.01852406,26014.0,26013.0,2.97516178]
[1693518716210,0.01852406,26014.0,26013.0,2.97588178]
[1693518716422,0.001,26014.0,26013.0,2.97576178]
[1693518716642,0.01852406,26014.0,26013.0,2.97564178]
[1693518716849,0.01852406,26014.0,26013.0,2.97648178]
[1693518717070,0.01852406,26014.0,26013.0,2.97672178]
[1693518717267,0.01852406,26014.0,26013.0,2.97804178]
[1693518717476,0.01852406,26014.0,26013.0,2.97780178]
[1693518717644,0.01852406,26014.0,26013.0,2.97408178]
[1693518717849,0.01852406,26014.0,26013.0,2.93008178]
[1693518718047,0.01852406,26014.0,26013.0,2.92252178]
[1693518718249,0.01852406,26014.0,26013.0,2.92852178]
[1693518718429,0.01852406,26014.0,26013.0,2.94364178]
[1693518718637,0.11064226,26014.0,26013.0,2.94424178]
[1693518718839,0.11064226,26014.0,26013.0,2.94460178]
[1693518719058,0.11064226,26014.0,26013.0,2.93956178]
[1693518719059,0.01852406,26014.0,26013.0,2.93956178]
[1693518719648,0.11064226,26014.0,26013.0,2.93440178]
[1693518719825,0.11064226,26014.0,26013.0,2.93512178]
[1693518720019,0.11064226,26014.0,26013.0,2.93644178]
[1693518720225,0.11064226,26014.0,26013.0,2.93548178]
[1693518720376,0.11064226,26014.0,26013.0,2.93680178]